[Event "44th Chess Olympiad Open 2022"]
[Site "Chennai"]
[Date "2022.08.03"]
[Round "6.20"]
[White "Hovhannisyan, Mher"]
[Black "Ioannidis, Evgenios"]
[Result "0-1"]
[WhiteElo "2420"]
[BlackElo "2459"]
[Annotator "TA"]
[PlyCount "113"]
[EventDate "2022.??.??"]
[TimeControl "60"]

{[%evp 9,113,3,11,6,23,15,32,25,8,0,0,-20,-8,-14,-6,-16,-6,-10,-12,-48,-22,-97,
-98,-141,-135,-187,-187,-184,-165,-175,-176,-174,-129,-130,-124,-137,-134,-137,
-125,-149,-120,-132,-111,-195,-198,-208,-192,-212,-203,-201,-200,-205,-225,
-217,-202,-224,-215,-209,-203,-258,-256,-360,-360,-315,-302,-332,-345,-358,
-365,-364,-372,-371,-365,-360,-311,-245,-216,-217,-208,-305,-305,-388,-425,
-671,-662,-1027,-738,-1677,-1585,-4710,-4631,-2386,-2422,-2127,-1981,-29971,
-29974,-29974,-29975,-29975,-29976,-29978,-29979,-29975,-29976,-29976]} 1. Nf3
{[%emt 0:00:11]} Nf6 {[%emt 0:00:51]} 2. c4 {[%emt 0:04:13]} e6 {[%emt 0:03:04]
} 3. e3 {[%emt 0:02:01]} d5 {[%emt 0:00:38]} 4. d4 {[%emt 0:01:00]} a6 {
[%emt 0:00:57]} 5. a3 {[%emt 0:06:03]} dxc4 {[%emt 0:04:16]} 6. Bxc4 {[%emt 0:
00:00] D30: Queen's Gambit Declined: Systems without Nc3.} Nbd7 {[%emt 0:01:30]
} 7. O-O {[%emt 0:04:21]} Bd6 {[%emt 0:01:21]} 8. Nc3 {[%emt 0:04:02] White is
slightly better.} b5 {[%emt 0:01:25]} 9. Ba2 {[%emt 0:04:59]} Bb7 {[%emt 0:00:
00] Prevents e4.} 10. Re1 {[%emt 0:06:07]} c5 {[%emt 0:07:57] [#]} 11. e4 $146
{[%emt 0:13:53]} ({Predecessor:} 11. d5 Nxd5 12. Nxd5 exd5 13. Bxd5 Bxd5 14.
Qxd5 Be7 15. a4 bxa4 16. Rd1 Qc8 17. Qe4 Nb6 {1-0 (33) Banikas,H (2566)
-Kapnisis,S (2427) Kalamata 2005}) 11... cxd4 {[%emt 0:00:39]} 12. Nxd4 {
[%emt 0:02:13]} (12. Qxd4 {seems wilder.} Bc5 13. Qd3 Ng4 14. Rf1) 12... Qb8 {
[%emt 0:00:54]} 13. h3 {[%emt 0:12:11][%cal Ya2e6]} O-O {[%emt 0:01:25]} 14.
Bg5 {[%emt 0:09:10]} h6 {[%emt 0:03:20]} (14... Rd8 $5 {[%cal Rh7h6]}) 15. Bxf6
{[%emt 0:03:52]} (15. Be3 $1 $11 {keeps the balance.}) 15... Nxf6 $17 {[%emt 0:
00:00]} (15... gxf6 $2 {[#]} 16. Nxe6 $1 fxe6 17. Bxe6+ Kh8 18. Qh5 Bh2+ 19.
Kh1 $18) 16. Qe2 {[%emt 0:01:45] Strongly threatening e5.} Bh2+ {[%emt 0:01:51]
A strong pair of Bishops.} 17. Kh1 {[%emt 0:00:46]} (17. Kf1 $17) 17... Be5 $19
{[%emt 0:00:07]} 18. Qe3 {[%emt 0:10:24]} Qa7 {[%emt 0:01:36]} 19. Rad1 {
[%emt 0:05:08]} Rfd8 {[%emt 0:13:30]} 20. Nce2 {[%emt 0:03:12][%cal Yc3e2,
Ye2d4,Yd4b3,Yb3c5]} Nxe4 {[%emt 0:03:02]} (20... Bxe4 21. f3 Bxd4 22. Rxd4 Rxd4
23. Qxd4 Qxd4 24. Nxd4 $17) 21. Bb1 {[%emt 0:02:16]} Bxd4 {[%emt 0:01:43]
Black is more active.} 22. Rxd4 {[%emt 0:01:20]} Rxd4 {[%emt 0:00:00]} 23. Nxd4
{[%emt 0:00:22]} Nf6 $36 {[%emt 0:00:40] Keeping White busy.} 24. Nb3 {[%emt 0:
02:04]} Bd5 {[%emt 0:02:11]} 25. Nc5 {[%emt 0:00:00]} a5 {[%emt 0:06:12]} 26.
b4 {[%emt 0:00:13]} (26. Bd3 $17 {was worth a try.}) 26... axb4 {[%emt 0:00:34]
} 27. axb4 {[%emt 0:00:02]} Qa3 {[%emt 0:00:49]} 28. Qxa3 {[%emt 0:01:17]} Rxa3
{[%emt 0:00:05]} 29. Bd3 {[%emt 0:00:29] [#]} Nd7 $1 {[%emt 0:04:22]} 30. Be4 {
[%emt 0:00:43]} (30. Nxd7 Rxd3) 30... Nxc5 {[%emt 0:01:49]} 31. bxc5 {[%emt 0:
00:03]} Rc3 {[%emt 0:00:27]} 32. Bxd5 {[%emt 0:00:45]} exd5 {[%emt 0:00:05]
[%cal Ye6d5,Yd5d4,Yd4d3] Endgame KR-KR} 33. Re8+ {[%emt 0:00:14]} Kh7 {[%emt 0:
00:05]} 34. Rc8 {[%emt 0:00:00]} d4 {[%emt 0:01:33]} 35. Rd8 {[%emt 0:00:55]} (
35. g3 {was called for.}) 35... d3 {[%emt 0:00:13] White must now prevent ...
b4.} ({Not} 35... Rxc5 36. Rxd4 Kg6 37. Kg1 $17) 36. c6 {[%emt 0:00:48]} b4 {
[%emt 0:00:49]} ({Stronger than} 36... Rxc6 37. Rxd3 b4 38. g3 $17) 37. c7 {
[%emt 0:00:06]} Rxc7 {[%emt 0:00:00]} 38. Rxd3 {[%emt 0:00:02]} Rb7 {[%emt 0:
00:14] Threatens to win with ... b3.} 39. Rb3 {[%emt 0:00:15]} Kg6 {[%emt 0:00:
05]} 40. Kg1 {[%emt 0:00:34]} Kf5 {[%emt 0:00:06]} 41. Kf1 {[%emt 0:30:18]} Ke4
{[%emt 0:33:32]} 42. Ke2 {[%emt 0:01:11]} Kd4 {[%emt 0:00:05] And now ...Kc4
would win.} 43. Kd2 {[%emt 0:00:00]} Kc4 {[%emt 0:00:00]} 44. Rg3 {[%emt 0:00:
00]} (44. Rf3 $142) 44... f5 {[%emt 0:00:00]} 45. Rf3 {[%emt 0:00:00]} Rf7 {
[%emt 0:00:00]} 46. h4 {[%emt 0:00:00]} (46. Re3 $142 f4 47. Re4+ Kb3 48. Kc1)
46... g5 {[%emt 0:00:00]} 47. hxg5 {[%emt 0:00:00]} hxg5 {[%emt 0:00:00][%cal
Yh6g5,Yg5g4] ...f4 is the strong threat.} 48. Rg3 {[%emt 0:01:26]} g4 {[%emt 0:
00:00]} 49. Rd3 {[%emt 0:01:17] Against Rd7} Ra7 {[%emt 0:00:00] ( -> ...Ra2+)}
50. Rd8 {[%emt 0:00:11]} Ra2+ {[%emt 0:00:00]} 51. Ke3 {[%emt 0:00:08]} Ra5 {
[%emt 0:00:00] Hoping for ...b3.} 52. Rd4+ {[%emt 0:02:31]} Kc3 {[%emt 0:00:00]
Black mates.} 53. Rd3+ {[%emt 0:00:30]} Kc2 {[%emt 0:00:06]} 54. Rd2+ {[%emt 0:
00:31]} Kc1 {[%emt 0:00:45]} 55. Rd8 {[%emt 0:00:32]} b3 {[%emt 0:00:00]} 56.
Rc8+ {[%emt 0:00:32]} Kb1 {[%emt 0:00:00]} 57. Kd4 {[%emt 0:00:19] Weighted
Error Value: White=0.57/Black=0.03 (flawless)} 0-1

[Event "44th Chess Olympiad Open 2022"]
[Site "Chennai"]
[Date "2022.08.03"]
[Round "6.21"]
[White "Fier, Alexandr"]
[Black "Sanchez, Sebastian Felipe"]
[Result "1/2-1/2"]
[WhiteElo "2567"]
[BlackElo "2440"]
[Annotator "TA"]
[PlyCount "149"]
[EventDate "2022.??.??"]
[TimeControl "60"]

{[%evp 14,149,22,3,20,16,14,16,29,0,45,19,51,45,46,49,76,0,8,10,4,0,0,17,15,
-78,-82,-84,-44,-47,-43,-51,-36,-32,-31,-32,0,-14,0,0,0,0,0,0,0,-37,-6,-77,-78,
-91,-79,-89,-122,-140,0,-78,-60,-104,0,-94,-96,-108,0,-51,-43,-56,-27,-27,-27,
-27,-14,-14,-10,-7,-7,-14,-14,-21,-21,-22,-13,-14,0,-22,0,-17,-16,-20,-14,-18,
0,-19,-15,-20,-5,-12,-12,-16,-16,-20,-2,-2,0,0,0,0,0,0,0,-8,0,-34,0,0,0,0,0,0,
0,0,0,0,0,0,0,0,0,0,0,0,0,0,0,0,0,0,0,0]} 1. e4 {[%emt 0:00:03]} c5 {[%emt 0:
00:00]} 2. Nf3 {[%emt 0:00:03]} e6 {[%emt 0:00:05]} 3. d4 {[%emt 0:00:03]} cxd4
{[%emt 0:00:06]} 4. Nxd4 {[%emt 0:00:03]} Nc6 {[%emt 0:00:06]} 5. Nc3 {[%emt 0:
00:00]} Qc7 {[%emt 0:00:08]} 6. Be3 {[%emt 0:00:04]} a6 {[%emt 0:00:58]} 7. Qd2
{[%emt 0:00:04] 7.g4 is more fashionable.} Nf6 {[%emt 0:01:22]} 8. O-O-O {
[%emt 0:00:08]} Be7 {[%emt 0:03:45] B48: Sicilian: Taimanov: 5 Nc3 Qc7 6 Be3
a6 without Be2.} 9. f3 {[%emt 0:00:07]} b5 {[%emt 0:03:08]} 10. g4 {[%emt 0:00:
00][%cal Yg2g4,Yg4g5] 10.Kb1 is not played anymore.} Bb7 {[%emt 0:00:00]} 11.
g5 {[%emt 0:05:18]} Nh5 {[%emt 0:00:36]} 12. Nce2 {[%emt 0:09:14][%cal Ye2g3] 
[#]} d5 $146 {[%emt 0:11:19]} ({Predecessor:} 12... Ne5 13. Ng3 Nxg3 14. hxg3
Nc4 15. Bxc4 Qxc4 16. Kb1 Rc8 17. Rh2 b4 18. Nf5 exf5 19. Qxd7+ {1-0 (50)
Okike,D (2177)-Efremov,V (2158) Chess.com INT 2021}) 13. Nxc6 {[%emt 0:05:36]}
Bxc6 {[%emt 0:00:06]} 14. e5 {[%emt 0:00:02]} (14. exd5 Bxd5 15. Bg2 O-O-O $15)
14... Qxe5 {[%emt 0:10:58]} 15. Nd4 {[%emt 0:00:04]} ({Better is} 15. Bh3 $1
$16 {[%cal Rh3g4]}) 15... Qc7 $11 {[%emt 0:08:31]} 16. f4 {[%emt 0:00:08]
Hoping for Be2.} Bd6 {[%emt 0:04:35]} 17. Nxc6 {[%emt 0:14:42]} Qxc6 {[%emt 0:
00:03]} 18. Be2 {[%emt 0:00:15]} g6 {[%emt 0:10:43]} 19. Qd4 {[%emt 0:10:08]
Inhibits Ng7.} (19. Bxh5 $11 gxh5 20. Kb1) 19... O-O $17 {[%emt 0:04:31]} 20.
Bxh5 {[%emt 0:06:31]} gxh5 {[%emt 0:00:00]} 21. Kb1 {[%emt 0:00:00]} Rac8 {
[%emt 0:00:00]} 22. Qd2 {[%emt 0:00:00]} Bc5 {[%emt 0:00:00]} 23. Bxc5 {
[%emt 0:01:43]} Qxc5 {[%emt 0:00:03]} 24. Rhf1 {[%emt 0:00:04]} Rc6 {[%emt 0:
13:31]} 25. f5 {[%emt 0:01:42]} Rfc8 {[%emt 0:00:04][%cal Rc5c2]} 26. Rc1 {
[%emt 0:00:03][%cal Yg5g6]} e5 {[%emt 0:05:39][%cal Ye6e5,Ye5e4,Ye4e3]} 27. Qe2
{[%emt 0:09:06]} e4 {[%emt 0:00:04]} 28. f6 {[%emt 0:05:50]} Re8 {[%emt 0:04:
53]} 29. Rf4 {[%emt 0:03:12]} e3 $36 {[%emt 0:04:37] aiming for ...d4. Black
is pushing.} 30. Rd1 {[%emt 0:08:23] Inhibits d4.} (30. Rh4 $1 $11 Re4 31. Rxe4
dxe4 32. h4) 30... d4 {[%emt 0:02:57]} 31. Rfxd4 {[%emt 0:00:11]} Qxg5 {
[%emt 0:00:10]} 32. Re4 {[%emt 0:00:04][%cal Re4e8]} Rcc8 {[%emt 0:01:32]} 33.
h4 {[%emt 0:03:14] [#]} Qxf6 {[%emt 0:00:08]} (33... Qg3 $1 $17 34. Rxe8+ Rxe8
35. Qxh5 h6) 34. Rxe3 {[%emt 0:00:08]} (34. Qxe3 $11 Rxe4 35. Qxe4) 34... Rxe3
{[%emt 0:01:40]} 35. Qxe3 {[%emt 0:00:03] [#]} Qxh4 {[%emt 0:01:11] Endgame
KQR-KQR} (35... Rc4 $1 $17 36. Qg1+ Kf8) 36. Qb6 {[%emt 0:08:28]} (36. Rf1 $11)
36... Re8 {[%emt 0:01:48]} 37. Qxa6 {[%emt 0:00:04]} (37. Rg1+ Kh8 38. Qa5 Qf6
$17) 37... Qd4 {[%emt 0:01:25]} 38. Rc1 {[%emt 0:00:15] Against Re1} ({White
should play} 38. Rf1 $1 $11) 38... Re5 {[%emt 0:00:16]} 39. a3 {[%emt 0:03:33]}
Kg7 {[%emt 0:00:50]} 40. Rf1 {[%emt 0:00:00] Qf6+ would kill now.} Rg5 {
[%emt 0:00:22]} 41. Qb7 {[%emt 0:30:15]} Qd5 {[%emt 0:05:11]} 42. Qe7 {[%emt 0:
00:00]} Rg6 {[%emt 0:02:14] Inhibits Qf6+.} 43. b3 {[%emt 0:00:00]} h6 {
[%emt 0:00:50]} 44. Qh4 {[%emt 0:00:00]} Qe5 {[%emt 0:02:19]} 45. Qd8 {[%emt 0:
00:00]} Rg5 {[%emt 0:04:47]} 46. Qd7 {[%emt 0:00:00]} Qe6 {[%emt 0:00:07]} 47.
Qd4+ {[%emt 0:00:00]} Qe5 {[%emt 0:03:02]} 48. Qd7 {[%emt 0:00:00]} Qe6 {
[%emt 0:00:03]} (48... Qd5 $5 {[%cal Rd5d7]} 49. Qe7 Qe6 $15) 49. Qd4+ {
[%emt 0:00:00]} f6 {[%emt 0:00:28]} 50. Qb4 {[%emt 0:00:00]} Re5 {[%emt 0:05:
11]} 51. Rg1+ {[%emt 0:00:00]} Kf7 {[%emt 0:00:08]} 52. Kb2 {[%emt 0:00:00]}
Qd5 {[%emt 0:02:48]} 53. Qf4 {[%emt 0:00:00]} Re2 {[%emt 0:00:00][%cal Ye2c2]}
54. Qc7+ {[%emt 0:00:00]} Re7 {[%emt 0:00:09]} 55. Qc3 {[%emt 0:00:00]} Qe5 {
[%emt 0:01:50]} 56. Rh1 {[%emt 0:00:00]} Kg6 {[%emt 0:00:00] White should
prevent ...f5.} 57. Rg1+ {[%emt 0:00:00]} Kf5 {[%emt 0:00:30]} 58. Rf1+ {
[%emt 0:00:00]} Kg5 {[%emt 0:00:51]} 59. Rg1+ {[%emt 0:00:00]} Kf5 {[%emt 0:00:
03]} 60. Rf1+ {[%emt 0:00:00]} Kg6 {[%emt 0:00:04] ...h4 is the strong threat.}
61. Rg1+ {[%emt 0:00:00]} Kf7 {[%emt 0:00:16]} 62. Rh1 {[%emt 0:00:00]} Re6 {
[%emt 0:02:38]} 63. Qxe5 {[%emt 0:00:00] The position is equal.} Rxe5 $11 {
[%emt 0:00:04] KR-KR} 64. Kc3 {[%emt 0:00:00]} Ke6 {[%emt 0:00:00]} 65. Kb4 {
[%emt 0:00:00]} Kd6 {[%emt 0:01:10]} 66. c4 {[%emt 0:00:00]} bxc4 {[%emt 0:00:
03]} 67. bxc4 {[%emt 0:00:00]} Rg5 {[%emt 0:01:46]} 68. a4 {[%emt 0:00:44]} Kc6
{[%emt 0:00:16]} 69. a5 {[%emt 0:00:15]} f5 {[%emt 0:00:50]} 70. Rh4 {[%emt 0:
00:44]} Rg6 {[%emt 0:00:32]} 71. Rxh5 {[%emt 0:00:56]} Rf6 {[%emt 0:00:04]} 72.
Kc3 {[%emt 0:00:26]} Kc5 {[%emt 0:01:16]} 73. Kd3 {[%emt 0:00:00]} Rd6+ {
[%emt 0:00:14]} 74. Ke3 {[%emt 0:00:04]} Kxc4 {[%emt 0:00:28]} 75. Rxf5 {
[%emt 0:00:06] Weighted Error Value: White=0.16 (very precise) / Black=0.14 
(very precise)} 1/2-1/2

[Event "44th Chess Olympiad Open 2022"]
[Site "Chennai"]
[Date "2022.08.03"]
[Round "6.21"]
[White "Diamant, Andre"]
[Black "Arenas, David"]
[Result "1/2-1/2"]
[WhiteElo "2538"]
[BlackElo "2426"]
[Annotator "TA"]
[PlyCount "55"]
[EventDate "2022.??.??"]
[TimeControl "60"]

{[%evp 17,55,10,8,13,0,10,0,13,24,0,0,0,0,0,0,-18,-18,-30,-31,-12,-28,-15,0,0,
0,0,18,13,16,0,0,0,0,0,0,0,0,0,0,0]} 1. c4 {[%emt 0:00:09]} c5 {[%emt 0:00:13]}
2. Nf3 {[%emt 0:00:23]} Nc6 {[%emt 0:00:17]} 3. Nc3 {[%emt 0:00:45]} g6 {
[%emt 0:00:11]} 4. e3 {[%emt 0:00:49]} Nf6 {[%emt 0:00:27]} 5. d4 {[%emt 0:00:
00]} cxd4 {[%emt 0:00:26]} 6. exd4 {[%emt 0:00:05]} d5 {[%emt 0:00:06]} 7. cxd5
{[%emt 0:00:29]} Nxd5 {[%emt 0:00:10]} 8. Qb3 {[%emt 0:00:16]} e6 {[%emt 0:00:
00]} 9. Bb5 {[%emt 0:02:34]} Bg7 {[%emt 0:00:16]} 10. O-O {[%emt 0:02:01] A35:
Symmetrical English: 2 Nc3 Nc6 3 Nf3.} O-O {[%emt 0:00:06]} 11. Bxc6 {[%emt 0:
00:00]} bxc6 {[%emt 0:00:09]} 12. Na4 {[%emt 0:05:19] 12.Re1 might become the
main line.} Qd6 {[%emt 0:00:06]} 13. Bd2 {[%emt 0:05:17]} Rb8 {[%emt 0:13:37]
[%cal Ya8b8,Yb8b5,Yb5e5,Ye5e2]} 14. Qc2 {[%emt 0:01:14]} Nb4 {[%emt 0:00:00]}
15. Bxb4 {[%emt 0:00:50] [#]} (15. Qc5 Qxc5 16. Nxc5 Nc2 $15) 15... Qxb4 $146 {
[%emt 0:00:23]} ({Predecessor:} 15... Rxb4 16. a3 Rb5 17. Rfd1 Rd8 18. h3 Rf5
19. Ne5 Bd7 20. Nc5 Be8 21. Nb7 Qd5 22. Nxd8 Qxd8 23. Nxc6 {1-0 (37)
Pantsulaia,L (2553)-Vestby Ellingsen,M (2361) Chess.com INT 2020}) 16. Ne5 {
[%emt 0:15:33] Pair of Knights!} Rb5 {[%emt 0:13:15]} (16... Qxd4 17. Nxc6 Qf4
18. Nxb8 Qxb8 19. Qb3 $16) 17. Rfd1 {[%emt 0:47:17]} ({Reject} 17. Nxc6 Qd6 18.
Rad1 Bb7 $17) 17... Bxe5 {[%emt 0:04:24]} 18. dxe5 {[%emt 0:00:06]} Rxe5 {
[%emt 0:00:09]} 19. a3 {[%emt 0:01:33]} Qb5 {[%emt 0:12:17] [#] aiming for ...
Re2. The position is equal.} 20. Rac1 {[%emt 0:04:11]} Re2 {[%emt 0:07:23]} 21.
Qxc6 {[%emt 0:01:43]} ({Of course not} 21. Qc4 Qxc4 22. Rxc4 Ba6 23. Rxc6 Bb5
$15) 21... Bd7 {[%emt 0:21:30]} 22. Qf3 {[%emt 0:01:40] Threatens to win with
Nc3.} ({Worse is} 22. Qxd7 {[#]} Re1+ $3 23. Rxe1 Qxd7 $19) 22... Re5 {[%emt 0:
00:45]} 23. Nc3 {[%emt 0:02:08]} Qxb2 {[%emt 0:00:11][%cal Yf8c8]} 24. Rb1 {
[%emt 0:04:32]} Qc2 {[%emt 0:00:05][%cal Yf8c8]} 25. Rbc1 $1 {[%emt 0:00:00]}
Qb2 {[%emt 0:00:04][%cal Yf8c8]} 26. Rb1 {[%emt 0:00:51]} Qc2 {[%emt 0:00:00]
[%cal Yf8c8]} 27. Rbc1 {[%emt 0:00:43]} Qb2 {[%emt 0:00:23][%cal Yf8c8] And
now ...Rc8! would win.} 28. Rb1 {[%emt 0:00:38] A balanced but interesting
game. Weighted Error Value: White=0.03 (flawless) /Black=0.03 (flawless)}
1/2-1/2

[Event "44th Chess Olympiad Open 2022"]
[Site "Chennai"]
[Date "2022.08.03"]
[Round "6.21"]
[White "Cardoso Cardoso, Jose Gabriel"]
[Black "Supi, Luis Paulo"]
[Result "1/2-1/2"]
[WhiteElo "2493"]
[BlackElo "2603"]
[Annotator "TA"]
[PlyCount "105"]
[EventDate "2022.??.??"]
[TimeControl "60"]

{[%evp 11,105,12,18,23,14,15,20,14,17,22,23,25,30,36,43,23,33,0,0,0,10,-10,-5,
-31,-34,-48,-52,-44,-52,-53,-47,-55,-49,-102,-110,-125,-143,-128,-93,-84,-95,
-96,-86,-114,-62,-249,-168,-154,-79,-177,-177,-166,-104,-93,-50,-53,-73,-93,
-93,-93,-93,-93,-118,-108,-71,-85,-76,-83,-27,-60,-16,-16,0,-3,0,0,60,60,60,60,
60,0,0,0,0,0,0,0,43,0,0,0,43,0,0,0]} 1. e4 {[%emt 0:00:05]} c5 {[%emt 0:00:33]}
2. Nf3 {[%emt 0:00:11]} d6 {[%emt 0:00:08]} 3. d4 {[%emt 0:00:18]} cxd4 {
[%emt 0:00:05]} 4. Nxd4 {[%emt 0:00:08]} Nf6 {[%emt 0:00:04]} 5. Nc3 {[%emt 0:
00:00]} a6 {[%emt 0:00:10]} 6. Bg5 {[%emt 0:00:11]} Nbd7 {[%emt 0:00:13]} 7.
Qe2 {[%emt 0:00:27] 7.Qe2 is a critical line. B94: Sicilian Najdorf: 6 Bg5
Nbd7.} h6 {[%emt 0:03:29]} 8. Bh4 {[%emt 0:00:05]} g6 {[%emt 0:01:59]} 9. f4 {
[%emt 0:00:05]} e5 {[%emt 0:00:14]} 10. fxe5 {[%emt 0:00:09]} dxe5 {[%emt 0:00:
00] [#]} 11. O-O-O $1 {[%emt 0:00:14]} Bg7 {[%emt 0:00:08]} (11... exd4 12. e5
Bc5 13. exf6+ Kf8 14. Ne4 $18) (11... Qc7 12. Nb3) 12. Nb3 {[%emt 0:03:45]} O-O
{[%emt 0:01:19]} 13. Nd5 {[%emt 0:01:12]} g5 {[%emt 0:02:29] [#]} 14. Be1 $146
{[%emt 0:06:55] Black must now prevent Ba5.} ({Predecessor:} 14. Bf2 Nxd5 15.
Rxd5 Qf6 16. Qd2 Qc6 17. h4 Nf6 18. Bd3 Nxd5 19. exd5 Qf6 20. hxg5 hxg5 21.
Bh7+ Kh8 22. Be3 Bh6 23. Nc5 Qg7 24. Be4 Rg8 25. Bxg5 {1-0 (25) Vasiesiu,V 
(2254)-Agdelen,H (2351) Sochi 2016}) 14... Nxd5 {[%emt 0:02:11]} 15. Rxd5 {
[%emt 0:03:53]} Qc7 {[%emt 0:08:52]} 16. g3 {[%emt 0:32:42]} b6 {[%emt 0:21:48]
} 17. Bc3 {[%emt 0:06:04]} Bb7 {[%emt 0:00:18]} 18. Rd1 {[%emt 0:00:00]} Nf6 {
[%emt 0:01:10]} 19. Bg2 {[%emt 0:01:16]} a5 {[%emt 0:05:35]} 20. a3 $1 {
[%emt 0:00:00]} Ba6 {[%emt 0:09:52]} 21. Qf3 {[%emt 0:00:00]} Bc4 {[%emt 0:00:
00]} 22. h4 {[%emt 0:06:21]} (22. Qf5 $15 Rfe8 23. Kb1) 22... g4 $36 {[%emt 0:
00:00] Black is in control.} 23. Qf5 {[%emt 0:00:05]} Rfe8 {[%emt 0:00:00] And
now ...b5 would win.} 24. Nd2 {[%emt 0:01:30]} Ba6 {[%emt 0:00:00][%cal Yc4a6,
Ya6c8,Yc8e6]} 25. Nb3 {[%emt 0:08:28]} Bc8 {[%emt 0:00:00]} 26. Qf2 {[%emt 0:
00:09]} Be6 $1 {[%emt 0:00:00]} 27. Kb1 {[%emt 0:02:54]} Rec8 $1 {[%emt 0:02:
36]} 28. a4 $2 {[%emt 0:25:41]} (28. Rhe1 $1 $15) 28... Qb8 {[%emt 0:02:46]
[%cal Yc8c3]} 29. Rhe1 {[%emt 0:05:30] [#]} Rc4 {[%emt 0:01:09]} ({Black
should try} 29... Rxc3 $1 30. bxc3 b5 31. axb5 Qxb5) 30. Rd5 {[%emt 0:04:47]}
Rxc3 $19 {[%emt 0:13:45]} (30... Nxd5 31. exd5 Bd7 32. d6 Rxc3 33. bxc3 $15)
31. bxc3 {[%emt 0:00:00]} Qc7 {[%emt 0:00:18]} (31... Bxd5 $19 32. exd5 Qd6)
32. Rb5 $17 {[%emt 0:00:00]} Rb8 {[%emt 0:01:09]} 33. Qe3 $1 {[%emt 0:00:00]}
Ne8 {[%emt 0:02:38]} 34. Bf1 {[%emt 0:00:00]} Nd6 {[%emt 0:00:00]} 35. Rd1 {
[%emt 0:00:00][%cal Yb5d5]} Nxb5 {[%emt 0:04:15]} (35... Rc8 {looks sharper.}
36. Kb2 Nxb5 37. Bxb5 Bf8) 36. Bxb5 {[%emt 0:00:00]} Bf8 {[%emt 0:00:59]} 37.
Rd3 {[%emt 0:00:00]} Rd8 {[%emt 0:01:50]} 38. Nd2 {[%emt 0:00:00][%cal Yb3d2,
Yd2c4,Yc4e3]} Kg7 {[%emt 0:04:09]} 39. Nc4 {[%emt 0:00:00][%cal Ye3e2]} Bc5 {
[%emt 0:02:50]} ({Don't play} 39... Bxc4 $6 40. Bxc4 Rd6 41. Rxd6 Qxd6 42. Qe2
$11) (39... Rc8 $17 40. Nd2 (40. Nxb6 $2 Bc5 $19) 40... Qb7) 40. Qd2 {[%emt 0:
00:00]} Be7 {[%emt 0:00:57] This bishop pair is nice.} 41. Ne3 {[%emt 0:00:00]}
Rd6 {[%emt 0:19:12]} 42. Bc4 {[%emt 0:00:00] Threatens to win with Bxe6.} Bd7 {
[%emt 0:05:16]} 43. Bb3 {[%emt 0:03:07]} ({Much worse is} 43. Qf2 Rf6 44. Qe2
h5 $15) 43... Qc5 {[%emt 0:01:28]} (43... Rxd3 $11 44. cxd3 Qc5) 44. Qf2 $14 {
[%emt 0:03:45]} Rf6 {[%emt 0:01:08]} 45. Qe2 {[%emt 0:00:20]} Rd6 {[%emt 0:02:
07]} 46. Qf1 {[%emt 0:05:37]} (46. Rxd6 $1 $14 Qxd6 47. Nxg4) 46... Rf6 $11 {
[%emt 0:01:06]} 47. Qd1 {[%emt 0:00:06]} Rd6 {[%emt 0:00:57]} 48. Qf1 {[%emt 0:
03:31]} Rf6 {[%emt 0:00:13]} 49. Qe2 {[%emt 0:00:18]} Rd6 {[%emt 0:00:39]} 50.
Qf2 {[%emt 0:04:29]} Rf6 {[%emt 0:00:00]} 51. Qe2 {[%emt 0:01:55]} Rd6 {
[%emt 0:00:11]} 52. Qf2 {[%emt 0:00:50]} Rf6 {[%emt 0:00:14]} 53. Qe2 {[%emt 0:
00:45] Black had all chances to win. Weighted Error Value: White=0.19 (very
precise) /Black=0.12 (very precise)} 1/2-1/2